Cogmind - Beta 16 @@@ ROGUE MODE // 2025.12.23 @ 22:00:53 Player: AngelSpirit Result: Smashed by cave-in Performance ------------- Evolutions (6) 3000 Regions Visited (18) 3600 Robots Destroyed (314) 1570 Value Destroyed (15058) 15058 Prototype IDs (65) 1300 Alien Tech Used (1) 200 Bonus (9024) 9024 TOTAL SCORE: 33752 Bonus ------- High Alert Combat Kills 3089 Follower Combat Kills 3952 Network Hubs Disabled 200 Registered with UFD 300 Met Optimus in HQ 500 Met Zhirov 300 Built Enhanced Grunts 300 Met R17 at Cetus 500 Friendly Fire -117 Cogmind --------- Core Integrity 0/1150 Matter 110/300 Energy 100/100 System Corruption 33% Temperature Cool (10) Movement Walking (120) Location -4/Armory Parts ------- > --- POWER (1) -------- (None) > --- PROPULSION (5) --- Flexi-carbon Leg Flexi-carbon Leg (fused) Myomer Leg Myomer Leg Myomer Leg > --- UTILITY (10) ----- Large Storage Unit Experimental Targeting Computer Improved Core Shielding Hardened Medium Armor Plating Improved Medium Armor Plating Improved Medium Armor Plating Improved Medium Armor Plating Long-range Tractor Beam > --- WEAPON (3) ------- Advanced KE Penetrator Advanced KE Penetrator Micro-nuke Launcher > --- INVENTORY (15) --- Neutrino Core Light Quantum Reactor Myomer Leg Matter Compressor (250) Particle Accelerator Advanced Cloaking Device Improved Medium Armor Plating Authchip [R/Combat] Transdimensional Reconstructor Advanced KE Penetrator Advanced KE Penetrator Hypervelocity Railgun Hypervelocity Mass Driver Light Antimatter Cannon Light Antimatter Cannon Peak State ------------ > --- POWER ------------ Light Quantum Reactor > --- PROPULSION ------- Cooled Gravmag System Cooled Gravmag System Combat Antigrav System Combat Antigrav System Combat Linear Gravjet > --- UTILITY ---------- Large Storage Unit Energy Well Advanced Weight Redist. System Experimental Sensor Array Experimental Signal Interpreter Experimental Targeting Computer Experimental Shock Absorption System Advanced System Shield Assault Drone Bay > --- WEAPON ----------- Hypervelocity Railgun Hypervelocity Railgun Gravity Flail > --- INVENTORY -------- Light Quantum Reactor Improved Linear Gravjet Matter Compressor Long-range Sensor Array Precision Matter Filter Particle Accelerator Improved System Restoration Module Transdimensional Reconstructor Hypervelocity Railgun Hypervelocity Mass Driver Micro-nuke Launcher [Rating: 144] Favorites ----------- Power Cold Fusion Reactor Engine Improved Deuterium Engine Power Core Enhanced Fission Core Reactor Cold Fusion Reactor Propulsion Cooled Gravmag System Treads Improved Treads Leg Myomer Leg Wheel Armored Huge Wheel Hover Unit Cooled Gravmag System Flight Unit VTOL Module Utility Advanced Signal Interpreter Device Experimental Sensor Array Storage Large Storage Unit Processor Advanced Signal Interpreter Hackware Improved Hacking Suite Protection Improved Medium Armor Plating Weapon Hypervelocity Gauss Rifle Energy Gun Subdweller Laser Energy Cannon EMDS Ballistic Gun Hypervelocity Gauss Rifle Ballistic Cannon Hypervelocity Gauss Cannon Launcher Micro-nuke Launcher Special Weapon CPS Tube Impact Weapon Gravity Flail Slashing Weapon Great Axe Piercing Weapon Lance Build | -11 -10 -10 -9 -9 -6 -6 -6 -6 -6 -5 -5 -5 -5 -4 -4 -4 -4 -4 ------- Run | Yrd Mat Sub Rec Scr Fac Ext Cet Arc Hub Fac Upp Upp Zhi Pro Fac Was Fac Arm Slots Evolved 12 | . . . . . 8 . . . . 2 . . . . 2 . . . Power . | . . . . . . . . . . . . . . . . . . . Propulsion 3 | . . . . . 2 . . . . 1 . . . . . . . . Utility 8 | . . . . . 5 . . . . 1 . . . . 2 . . . Weapon 1 | . . . . . 1 . . . . . . . . . . . . . Parts Attached 284 | 6 7 18 5 8 40 11 6 1 22 30 3 1 9 2 22 3 1 89 Power 24 | 1 1 2 . 1 3 1 2 . 1 2 . . 1 . 2 . . 7 Engine 5 | 1 . 2 . 1 1 . . . . . . . . . . . . . Core 6 | . 1 . . . . . . . . 2 . . . . . . . 3 Reactor 13 | . . . . . 2 1 2 . 1 . . . 1 . 2 . . 4 Propulsion 67 | 2 1 4 1 2 10 1 . . 4 6 1 . 3 . 6 1 . 25 Treads 4 | . . . . . . . . . . . . . . . . . . 4 Leg 15 | . . . . . 1 . . . . . . . . . . . . 14 Wheel 21 | 2 1 4 1 2 9 1 . . 1 . . . . . . . . . Hover 25 | . . . . . . . . . 3 4 1 . 3 . 6 1 . 7 Flight 2 | . . . . . . . . . . 2 . . . . . . . . Utility 112 | 1 2 5 2 2 17 6 3 1 10 12 1 1 4 2 10 2 1 30 Device 34 | . . 1 . . 4 . 1 1 2 4 1 . 2 1 3 2 1 11 Storage 8 | 1 1 . . . 1 . . . . 2 . . . . 2 . . 1 Processor 9 | . . . . . 2 . . . 1 3 . . . . 3 . . . Hackware 8 | . . . . . 3 3 . . . 1 . . . . 1 . . . Protection 53 | . 1 4 2 2 7 3 2 . 7 2 . 1 2 1 1 . . 18 Artifact . | . . . . . . . . . . . . . . . . . . . Weapon 81 | 2 3 7 2 3 10 3 1 . 7 10 1 . 1 . 4 . . 27 Energy Gun 6 | . . 2 . . . . . . . 2 . . . . . . . 2 Energy Cannon 4 | . . . . . 1 . . . 1 . . . . . . . . 2 Ballistic Gun 43 | 2 1 2 2 2 6 2 1 . 4 2 1 . 1 . 1 . . 16 Ballistic Cannon 18 | . 2 3 . 1 2 . . . . 3 . . . . 3 . . 4 Launcher 3 | . . . . . . 1 . . 1 . . . . . . . . 1 Special Weapon 1 | . . . . . . . . . 1 . . . . . . . . . Impact Weapon 2 | . . . . . . . . . . . . . . . . . . 2 Slashing Weapon 2 | . . . . . 1 . . . . 1 . . . . . . . . Piercing Weapon 2 | . . . . . . . . . . 2 . . . . . . . . Special Melee Weapon . | . . . . . . . . . . . . . . . . . . . Unidentified Prototypes 30 | . . . . . 3 . 3 1 2 5 . . 6 . 1 2 . 7 Corrupted Parts 1 | . . . . . 1 . . . . . . . . . . . . . System Corruption 1 | . . . . . 1 . . . . . . . . . . . . . Parts Lost 87 | . 2 7 . . 5 3 . . 18 1 . . . . 2 . . 49 Power 6 | . 1 . . . . 1 . . 1 . . . . . . . . 3 Propulsion 22 | . 1 3 . . 2 . . . 3 . . . . . . . . 13 Utility 33 | . . 2 . . 1 1 . . 6 1 . . . . . . . 22 Weapon 26 | . . 2 . . 2 1 . . 8 . . . . . 2 . . 11 Highest Loss Streak 16 | . 1 2 . . 2 2 . . 15 1 . . . . 1 . . 16 To Critical Strikes 1 | . . . . . . . . . . . . . . . . . . 1 Average Backups 14 | . 6 12 16 17 18 20 20 22 18 5 12 12 11 12 12 14 13 13 Power . | . . 1 2 1 1 . . 2 1 . . . . . . 1 1 1 Propulsion 2 | . . 2 2 1 3 3 3 3 2 . 2 2 2 2 2 2 1 1 Utility 7 | . 3 5 6 11 9 10 11 10 8 2 7 7 7 7 7 9 8 5 Weapon 2 | . 2 3 5 1 1 4 4 6 4 1 3 3 2 2 1 1 1 4 Tool/Special . | . . . . . . . . . . . . . . . . . . . Unused Backups 75 | . . 3 1 21 14 2 2 . 4 . 2 1 1 . 6 . 3 15 Power 7 | . . 1 1 3 . . . . . . . . . . 1 . . 1 Propulsion 12 | . . . . 3 5 . . . . . . . . . 3 . 1 . Utility 39 | . . 2 . 11 6 2 2 . 4 . 1 1 1 . 2 . 2 5 Weapon 13 | . . . . 3 2 . . . . . . . . . . . . 8 Tool/Special 4 | . . . . 1 1 . . . . . 1 . . . . . . 1 Average Slot Usage (%) 90 | . 95 95 100 96 86 82 82 85 80 89 94 94 93 93 93 94 94 89 Engine 1 | . 4 4 . 9 1 2 . . . . . . . . . . . . Core 2 | . 8 9 14 4 . . . . . 2 5 5 5 5 2 . . 1 Reactor 2 | . . . . . 4 3 6 6 5 2 . . . . 2 5 5 3 Leg 2 | . . . . . . . . . . . . . . . . . . 16 Wheel 11 | . 24 27 28 28 21 14 13 13 10 . . . . . . . . . Hover 8 | . . . . . . . . . 2 19 23 23 23 23 24 26 26 7 Device 9 | . . 1 . . 12 1 1 . 1 20 17 11 11 13 18 10 10 11 Storage 8 | . 14 11 14 14 6 6 6 6 5 2 5 5 5 5 7 10 10 10 Processor 6 | . . . . . 5 6 6 6 6 9 17 17 15 11 10 10 10 6 Hackware 5 | . . . . . 6 18 20 20 18 9 . . . . 4 5 5 1 Protection 10 | . 13 12 14 12 7 8 8 12 12 1 5 10 11 14 7 9 9 15 Ballistic Gun 13 | . 19 8 20 24 10 19 20 20 16 5 16 17 16 13 6 5 5 11 Ballistic Cannon 2 | . 8 11 7 . 3 . . . . 1 . . . . 1 5 5 1 Piercing Weapon 1 | . . . . . . . . . . 3 . . . 2 4 5 5 . Peak Build Rating 144 | 6 12 14 18 31 84 79 85 86 87 98 97 94 104 109 127 133 132 144 Average Rating 76 | 4 8 12 15 23 69 74 77 80 76 85 93 93 96 102 115 129 131 113 On Entrance 69 | . 6 12 12 18 29 73 75 81 81 51 95 94 94 100 105 127 131 132 Avg Prop Armor Cover (%) 5 | . . . . . . . . . 9 4 . . . . 2 . . 12 Naked Turns . | . . . . . . . . . . . . . . . . . . . Heaviest Build 138 | 11 53 54 60 66 135 133 133 125 138 56 61 61 64 69 76 75 76 104 Greatest Support 115 | 20 26 40 30 28 64 56 56 56 56 62 62 62 62 62 80 77 77 115 Greatest Overweight (x) 9 | . 4 5 2 4 4 2 2 2 4 . . . 1 1 1 . . 9 Average Overweight (x) . | . 1 1 1 1 1 2 1 2 1 . . . . . . . . . Largest Inventory Capacity 25 | 8 20 20 20 20 25 25 25 25 25 15 15 15 15 15 15 15 15 15 Average Capacity 18 | 6 19 17 20 20 24 25 25 25 22 10 15 15 15 15 15 15 15 15 Most Carried 25 | . 15 18 20 20 25 25 25 25 25 15 15 15 15 15 15 15 15 15 Average Carried 17 | . 6 12 17 19 23 24 24 25 20 7 14 14 14 14 14 14 14 14 Final Capacity 25 | 8 20 20 20 20 25 25 25 25 5 15 15 15 15 15 15 15 15 15 Final Carried 25 | . 15 14 20 20 25 25 25 25 5 15 15 15 15 15 15 15 15 15 Class Distribution -------------------- 32% | Mutant 10% | Scavenger-Tank 9% | Scout 8% | Skirmisher 6% | Hacker-Tank 4% | Scavenger-Mutant 4% | Commander-Tank 3% | Infiltrator-Ninja 3% | Hacker-Scout Dominant Class ---------------- Mutant | -10/Materials Mutant | -10/Subcaves Mutant | -9/Recycling Mutant | -9/Scraptown Skirmisher | -6/Factory Hacker-Tank | -6/Extension Commander-Tank | -6/Cetus Commander-Tank | -6/Archives Commander-Tank | -6/Hub_04(d) Hacker-Scout | -5/Factory Scout | -5/Upper Caves Scout | -5/Upper Caves Scout | -5/Zhirov Mutant | -4/Proximity Caves Scout | -4/Factory Mutant | -4/Waste Mutant | -4/Factory Scavenger-Tank | -4/Armory Resources | -11 -10 -10 -9 -9 -6 -6 -6 -6 -6 -5 -5 -5 -5 -4 -4 -4 -4 -4 ----------- Run | Yrd Mat Sub Rec Scr Fac Ext Cet Arc Hub Fac Upp Upp Zhi Pro Fac Was Fac Arm Matter Collected 16801 | 197 463 489 336 381 1832 907 1375 75 769 707 715 300 143 327 1813 333 1043 4596 Remotely 684 | . . . . . . . . . . . . . . . . . . 684 Salvage Created 19936 | . 507 321 334 . 1991 1424 80 77 795 869 1016 225 143 401 2263 1324 2000 6166 Parts 951 | . 27 24 10 . 103 58 3 3 42 46 49 9 1 20 131 28 82 315 Haulers Intercepted 2 | . 1 . . . . . . . . 1 . . . . . . . . Recyclers Shooed 4 | . . . . . 2 1 . . . . . . . . . . 1 . Parts Field Recycled . | . . . . . . . . . . . . . . . . . . . Retrieved Matter . | . . . . . . . . . . . . . . . . . . . Parts Self-Destructed 86 | . . 16 . . . . . . . . 48 9 1 12 . . . . Prevented 6 | . . . . . . . . . . . . . . 6 . . . . Parts Restored . | . . . . . . . . . . . . . . . . . . . Kills | -11 -10 -10 -9 -9 -6 -6 -6 -6 -6 -5 -5 -5 -5 -4 -4 -4 -4 -4 ------- Run | Yrd Mat Sub Rec Scr Fac Ext Cet Arc Hub Fac Upp Upp Zhi Pro Fac Was Fac Arm Combat Hostiles Destroyed 238 | . 7 11 1 . 25 17 1 1 8 11 16 3 . 4 30 5 19 79 Melee 13 | . . . . . 6 . . . . . . . . . 4 . . 3 Guns 172 | . 4 6 . . 17 15 1 1 6 11 16 3 . 3 20 1 4 64 Cannons 38 | . 3 5 1 . 2 . . . 1 . . . . . . 4 15 7 AOE 12 | . . . . . . 2 . . 1 . . . . . 5 . . 4 Classes Destroyed 22 | . 8 3 1 . 3 1 . . 1 . . . . . . 1 . 4 Worker 18 | . 1 . . . 2 1 . . . 7 . . . . 3 . 4 . Builder 7 | . 1 . . . 1 1 . . . . . . . . . . 4 . Tunneler 2 | . 1 . . . 1 . . . . . . . . . . . . . Hauler 2 | . 1 . . . . . . . . 1 . . . . . . . . Recycler 13 | . 2 . 1 . 4 1 . . . . . . . . 2 . 3 . Operator 7 | . . . . . 2 2 . . . 1 . . . . 1 . . 1 Turret 2 | . . 2 . . . . . . . . . . . . . . . . Watcher 20 | . 2 . . . 1 1 . . 3 2 . . . . 5 . 2 4 Swarmer 32 | . 3 3 . . . . . . . 5 3 . . . 12 . . 6 Cutter 1 | . . . . . . . . . . . . . . . . . . 1 Saboteur 1 | . . . . . . . . . . . . . . . . . . 1 Grunt 89 | . 4 . 1 . 9 12 . . 3 4 12 3 . 2 4 . 11 24 Brawler 10 | . . . . . . . . . . . . . . . . . . 10 Duelist 8 | . . . . . 1 . . . . . . . . 1 . . . 6 Protector 5 | . . . . . . . . . 1 . . . . . . . . 4 Sentry 36 | . . 1 . . 5 4 . 1 1 2 1 . . . 6 . 5 10 Demolisher 3 | . . . . . . . . . . . . . . . . . . 3 Hunter 11 | . . . 1 . 3 . . . . . . . . 2 . . 1 4 Programmer 29 | . . . . . 7 . . . . . . . . . 8 . 2 12 Behemoth 1 | . . . . . . 1 . . . . . . . . . . . . Compactor 5 | . . . . . . . . . . . . . . . . 5 . . Cetus Guard 1 | . . . . . . . 1 . . . . . . . . . . . Enhanced Grunt 1 | . . . . . . . . . 1 . . . . . . . . . Lightning 3 | . . . . . . . . . 3 . . . . . . . . . Subdweller 7 | . . 7 . . . . . . . . . . . . . . . . Best Kill Streak 8 | . 3 3 1 . 5 5 1 1 3 7 4 1 . 2 7 4 8 8 Combat Bots Only 7 | . 2 3 1 . 5 5 1 1 3 5 4 1 . 2 7 4 4 7 Max Kills in Single Turn 5 | . 2 2 1 . 2 3 1 1 1 1 1 1 . 1 5 1 4 3 Gunslinging 1 | . . 1 . . . . . . . . . . . . 1 . . 1 Exploded 5 | . . . . . . 2 . . 1 . . . . . 5 . . 3 Melee 1 | . . . . . 1 . . . . . . . . . 1 . . 1 Uniques/NPCs Destroyed . | . . . . . . . . . . . . . . . . . . . Combat | -11 -10 -10 -9 -9 -6 -6 -6 -6 -6 -5 -5 -5 -5 -4 -4 -4 -4 -4 -------- Run | Yrd Mat Sub Rec Scr Fac Ext Cet Arc Hub Fac Upp Upp Zhi Pro Fac Was Fac Arm Hostile Shots Fired 1857 | . 45 101 4 . 264 108 14 4 303 44 27 20 . 12 131 . 34 746 Missed 626 | . 16 36 1 . 85 40 3 . 75 12 12 12 . 3 52 . 11 268 Hits 1231 | . 29 65 3 . 179 68 11 4 228 32 15 8 . 9 79 . 23 478 Melee 38 | . . . . . 9 . . . . 1 . . . . . . 2 26 Projectile 1193 | . 29 65 3 . 170 68 11 4 228 31 15 8 . 9 79 . 21 452 AOE 7 | . . . . . . . . . . . . . . . . . . 7 Critical Strikes 74 | . 1 . . . 8 3 2 . 25 1 1 1 . 1 3 . 3 25 Actively Blocked 18 | . . . . . . . . . . . . . . . 1 . . 17 Part Disruptions 2 | . . . . . . . . . 1 . . . . . . . . 1 Damage Taken 23811 | . 343 895 49 . 2787 943 228 94 5177 524 272 124 . 91 1555 . 572 10157 Core 2324 | . 71 154 . . 276 98 70 . 365 61 19 15 . . 94 . 37 1064 Absorbed by Shields 784 | . . . . . . 352 . . 95 . . . . . . . . 337 Redirected to Shielding 428 | . 14 34 . . . . . . . . 8 . . 20 162 . 19 171 Ignored by Resistances 50 | . . . . . . 21 4 . 25 . . . . . . . . . Regen/Repaired (Parts) 720 | . . . . . 100 . . . . 216 . . . . 126 97 167 14 Core Remaining (%) 51 | 100 . . . 10 . . . . 4 . . . . 90 . . . . Volleys Fired 869 | . 43 68 19 . 91 54 14 3 42 39 43 18 . 10 91 21 76 237 Largest 3 | . 2 2 2 . 3 3 3 3 3 2 3 3 . 3 3 2 2 3 Hottest 136 | . 60 90 60 . 102 99 99 99 111 75 99 99 . 99 99 84 84 136 Shots Fired 2012 | . 86 126 38 . 192 155 42 9 107 58 129 54 . 26 190 42 152 606 Gun 1688 | . 64 57 32 . 162 152 42 9 100 50 129 54 . 24 177 21 77 538 Cannon 306 | . 22 69 6 . 30 . . . 1 8 . . . 2 13 21 75 59 Launcher 16 | . . . . . . 3 . . 4 . . . . . . . . 9 Special 2 | . . . . . . . . . 2 . . . . . . . . . Kinetic 1942 | . 86 99 38 . 192 152 42 9 100 45 129 54 . 24 181 42 152 597 Thermal 39 | . . 27 . . . . . . . 12 . . . . . . . . Explosive 16 | . . . . . . 3 . . 4 . . . . . . . . 9 Electromagnetic 13 | . . . . . . . . . 1 1 . . . 2 9 . . . Robot Hit Streak 25 | . 14 16 18 . 14 16 9 2 7 14 14 7 . 8 18 19 25 21 Robot Miss Streak 8 | . 3 6 1 . 8 3 2 3 5 3 3 3 . 2 2 1 2 4 Penetration Max 4 | . . . 1 . 2 3 1 1 2 1 2 . . 1 1 . 2 4 Secondary Targets 22 | . . 1 . . . 2 1 1 3 . 1 . . . 3 . . 10 Max Gunslinging Chain 1 | . . 1 . . . 1 1 1 1 . 1 . . . 1 . . 1 Shots Hit Robots 1379 | . 53 67 32 . 142 99 29 5 60 60 71 32 3 17 117 37 128 427 Core Hits 747 | . 23 23 13 . 83 64 10 3 34 36 35 10 1 9 91 9 65 238 Critical Kills 179 | . 1 . 1 . 2 19 1 1 10 5 15 3 . 3 26 5 22 65 Critical Parts Destroyed 251 | . 1 1 . . 5 25 6 1 15 7 18 8 . 5 16 1 44 98 Critical Strikes 486 | . 2 1 1 . 9 50 14 2 27 14 34 11 1 9 43 18 68 182 Destroy 475 | . 2 1 1 . 7 50 14 2 26 13 34 11 . 8 42 18 68 178 Corrupt 2 | . . . . . . . . . 1 . . . . 1 . . . . Smash 4 | . . . . . . . . . . . . . . . . . . 4 Sever 2 | . . . . . 2 . . . . . . . . . . . . . Impale 3 | . . . . . . . . . . 1 . . 1 . 1 . . . Melee Attacks 198 | . . . . . 61 . . . . 47 . . 3 2 49 . 9 27 Impact 26 | . . . . . . . . . . . . . . . . . . 26 Slashing 65 | . . . . . 61 . . . . 4 . . . . . . . . Piercing 107 | . . . . . . . . . . 43 . . 3 2 49 . 9 1 Sneak Attacks 16 | . . . . . 5 . . . . 6 . . . . 3 . 2 . Combat Hostiles . | . . . . . . . . . . . . . . . . . . . Follow-up Attacks . | . . . . . . . . . . . . . . . . . . . Damage Inflicted 22925 | . 776 1368 580 . 3851 1446 214 48 1445 1491 515 193 243 219 1883 430 2012 6211 Guns 13114 | . 574 661 490 . 2282 979 214 48 717 384 515 193 . 110 824 126 527 4470 Cannons 4157 | . 202 707 90 . 496 . . . 51 172 . . . 109 362 304 1029 635 Explosions 2249 | . . . . . . 467 . . 653 . . . . . 276 . 307 546 Melee 3381 | . . . . . 1073 . . . . 935 . . 243 . 421 . 149 560 Ramming 24 | . . . . . . . . . 24 . . . . . . . . . Kinetic 16367 | . 776 1115 580 . 2778 979 214 48 717 370 515 193 . 110 881 430 1556 5105 Thermal 883 | . . 253 . . . . . . . 142 . . . . 62 . 307 119 Explosive 1547 | . . . . . . 467 . . 653 . . . . . . . . 427 Electromagnetic 723 | . . . . . . . . . 51 44 . . . 109 519 . . . Impact 560 | . . . . . . . . . . . . . . . . . . 560 Slashing 1073 | . . . . . 1073 . . . . . . . . . . . . . Piercing 1748 | . . . . . . . . . . 935 . . 243 . 421 . 149 . Highest Corruption 36 | . . . . . 5 . . . 36 . . . . . 2 . 1 25 Average Corruption 8 | . . . . . 2 . . . 23 . . . . . 1 . 1 15 Corruption Purged 21 | . . . . . 9 . . . . . . . . . 2 . 1 9 Corruption Blocked . | . . . . . . . . . . . . . . . . . . . Effects 205 | . . . . . 32 . . . 15 . . . . . 10 . 8 140 Message Errors 35 | . . . . . 3 . . . 3 . . . . . 2 . 2 25 Matter Fused 47 | . . . . . 13 . . . 1 . . . . . 2 . 1 30 Heat Flow Errors 21 | . . . . . 5 . . . 3 . . . . . . . 1 12 Energy Discharges 21 | . . . . . 6 . . . 1 . . . . . 2 . 1 11 Parts Rejected 5 | . . . . . . . . . 1 . . . . . . . . 4 Parts Fused 2 | . . . . . . . . . . . . . . . . . . 2 Data Loss (minor) 20 | . . . . . 2 . . . 2 . . . . . 1 . . 15 Data Loss (major) 18 | . . . . . 2 . . . 1 . . . . . 2 . 1 12 Misfires 7 | . . . . . 1 . . . . . . . . . . . 1 5 Alerts 2 | . . . . . . . . . . . . . . . . . . 2 Misdirections 5 | . . . . . . . . . 2 . . . . . . . . 3 Weapon Failures 22 | . . . . . . . . . 1 . . . . . 1 . 1 19 Overload Shots . | . . . . . . . . . . . . . . . . . . . Overflow Damage 751 | . . . 9 . 201 . . . . 127 . . 137 . 85 . 95 97 Projectiles 130 | . . . 9 . 2 . . . . 78 . . . . 41 . . . Explosions 55 | . . . . . . . . . . . . . . . . . 55 . Melee 566 | . . . . . 199 . . . . 49 . . 137 . 44 . 40 97 Knockbacks 56 | . 2 9 . . 19 . . . . 1 . . . . . . 12 13 Impact 1 | . . . . . . . . . . . . . . . . . . 1 Kinetic 50 | . 2 8 . . 17 . . . . 1 . . . . . . 12 10 Secondary 5 | . . 1 . . 2 . . . . . . . . . . . . 2 Self-Inflicted Damage 130 | . . . . . . . . . 70 . . . . . . . . 60 Shots 3 | . . . . . . . . . 1 . . . . . . . . 2 Rammed 2 | . . . . . . . . . 2 . . . . . . . . . Targets Rammed 2 | . . . . . . . . . 2 . . . . . . . . . Kicked . | . . . . . . . . . . . . . . . . . . . Crushed . | . . . . . . . . . . . . . . . . . . . Highest Temperature 360 | . 24 4 45 . 258 123 45 81 318 360 173 90 . . 12 . 106 246 Average Temperature 56 | . 7 2 9 . 61 23 19 36 110 117 53 34 . . 12 . 24 55 Received Heat Transfer 3256 | . 159 195 . . 585 108 9 18 666 54 84 57 . . 148 . 54 1119 Effects 4 | . . . . . . . . . 4 . . . . . . . . . Energy Bleed 1 | . . . . . . . . . 1 . . . . . . . . . Interference 3 | . . . . . . . . . 3 . . . . . . . . . Siege Activations . | . . . . . . . . . . . . . . . . . . . Martial Activations . | . . . . . . . . . . . . . . . . . . . Shielding Activations . | . . . . . . . . . . . . . . . . . . . Robots Disrupted . | . . . . . . . . . . . . . . . . . . . Combat Hostiles . | . . . . . . . . . . . . . . . . . . . Robots Corrupted 3 | . . . . . . . . . . . . . . 1 1 . . 1 Combat Hostiles 3 | . . . . . . . . . . . . . . 1 1 . . 1 Parts Fried 4 | . . . . . . 1 . . . . . . . 1 1 . . 1 Impact Corruptions 3 | . . . . . . . . . . . . . . . . . . 3 Robots Melted . | . . . . . . . . . . . . . . . . . . . Combat Hostiles . | . . . . . . . . . . . . . . . . . . . Parts Melted 3 | . . . . . . . . . . . . . . . . . . 3 Heat Transferred 1050 | . . 300 . . . . . . . 300 . . . . 100 . 250 100 Parts Sabotaged . | . . . . . . . . . . . . . . . . . . . Parts Stolen . | . . . . . . . . . . . . . . . . . . . Parts Stripped . | . . . . . . . . . . . . . . . . . . . Power Chain Reactions 2 | . . . . . . . . . . . . . . . 2 . . . Alert | -11 -10 -10 -9 -9 -6 -6 -6 -6 -6 -5 -5 -5 -5 -4 -4 -4 -4 -4 ------- Run | Yrd Mat Sub Rec Scr Fac Ext Cet Arc Hub Fac Upp Upp Zhi Pro Fac Was Fac Arm Maximum Alert Level 5 | . . . . . 1 3 2 1 2 2 . . . . 2 . 4 5 Low Security (%) 44 | 100 100 . 100 . 69 80 . . 34 27 . . . . 37 100 3 5 Level 1 26 | . . . . . 30 3 37 99 19 48 . . . . 50 . 1 20 Level 2 15 | . . . . . . 13 62 . 45 23 . . . . 11 . 38 19 Level 3 5 | . . . . . . 1 . . . . . . . . . . 29 19 Level 4 7 | . . . . . . . . . . . . . . . . . 26 31 Level 5 . | . . . . . . . . . . . . . . . . . . 3 High Security . | . . . . . . . . . . . . . . . . . . . Max Security . | . . . . . . . . . . . . . . . . . . . Peak Influence 1654 | . 120 . 100 . 261 714 515 331 671 666 . . . . 534 184 1341 1654 Initial 653 | . . . 70 . . 126 397 171 91 258 . . . . 18 184 44 653 Average 356 | . 33 . 30 . 106 148 420 288 367 309 . . . . 247 125 853 873 Influence Increases 13917 | . 341 360 240 . 976 1144 428 190 1329 1207 445 295 10 100 1696 . 2157 2999 Destroy 0b10 Robot/C 6320 | . 140 120 40 . 500 620 200 80 460 540 320 60 . 80 720 . 780 1660 Destroy 0b10 Robot/NC 450 | . 40 . 25 . 55 35 10 . 30 70 . . 10 . 50 . 85 40 Destroy Leader 1234 | . 36 . . . 182 94 10 . 128 98 20 10 . 20 140 . 164 332 Allied During Kill 2030 | . . . 1 . . 256 199 80 471 152 . . . . 37 . 711 123 Trap Triggered on 0b10 20 | . . . . . 10 . . . . 10 . . . . . . . . Successful Hack 388 | . 18 . 24 . 63 50 . . . 102 . . . . 52 . 71 8 Select Force Hacks 200 | . . . 150 . . . . . 50 . . . . . . . . . Disable Machine 735 | . . . . . 90 30 . 30 75 60 . . . . 210 . 135 105 Destroy Structure 755 | . 2 . . . 46 44 9 . 70 70 . . . . 142 . 196 176 Partial Spotted 90 | . . . . . . . . . . 15 . . . . 75 . . . Lose Combat Pursuer 1695 | . 105 240 . . 30 15 . . 45 90 105 225 . . 270 . 15 555 Influence Decreases 12300 | . 250 303 366 22 717 693 709 358 1062 1085 627 250 523 70 1200 462 886 2717 Entered New Map 3188 | . . 44 78 22 . 133 313 258 170 270 241 90 513 . 12 342 20 682 Time Decay 5424 | . 240 232 288 . 447 478 356 80 362 516 356 140 10 70 598 120 416 715 Lost Part 817 | . 10 27 . . 50 30 . . 180 10 . . . . 20 . . 490 Lost Ally 1262 | . . . . . . 52 40 20 200 100 30 20 . . 120 . 300 380 Purge Threat 1609 | . . . . . 220 . . . 150 189 . . . . 450 . 150 450 Squads Dispatched 83 | . 2 . . . 16 5 . . 4 15 . . . . 14 . 14 13 Investigation 28 | . 1 . . . 5 2 . . 3 6 . . . . 5 . 6 . Extermination 24 | . . . . . 8 . . . 1 3 . . . . 5 . 1 6 Reinforcement 21 | . 1 . . . 3 3 . . . 5 . . . . 4 . 3 2 Assault 10 | . . . . . . . . . . 1 . . . . . . 4 5 Garrison . | . . . . . . . . . . . . . . . . . . . Intercept . | . . . . . . . . . . . . . . . . . . . Searches Triggered . | . . . . . . . . . . . . . . . . . . . Construction Impeded 3 | . . . . . . 2 . . . . . . . . . . 1 . Haulers Reinforced 2 | . . . . . . . . . . 1 . . . . . . 1 . Active Scanning Responses . | . . . . . . . . . . . . . . . . . . . Cargo Convoy Interrupts 1 | . . . . . 1 . . . . . . . . . . . . . Stealth | -11 -10 -10 -9 -9 -6 -6 -6 -6 -6 -5 -5 -5 -5 -4 -4 -4 -4 -4 --------- Run | Yrd Mat Sub Rec Scr Fac Ext Cet Arc Hub Fac Upp Upp Zhi Pro Fac Was Fac Arm Distress Signals 35 | . 1 . . . 3 2 2 . 5 3 . . . . 6 . 2 11 Communications Jammed . | . . . . . . . . . . . . . . . . . . . Distress Signals . | . . . . . . . . . . . . . . . . . . . Times Spotted 475 | . 19 18 2 . 41 33 12 4 33 31 21 29 . 1 58 4 33 136 Peak Tracking Total 12 | . 3 4 1 . 5 6 5 1 10 8 5 12 . 2 9 3 8 11 Tactical Retreats 69 | . 3 6 . . 2 1 . . 3 4 6 7 . . 13 . 1 23 ECM-based Alert Blocks 6 | . . . . . . . . . . . . . . . 6 . . . Traps | -11 -10 -10 -9 -9 -6 -6 -6 -6 -6 -5 -5 -5 -5 -4 -4 -4 -4 -4 ------- Run | Yrd Mat Sub Rec Scr Fac Ext Cet Arc Hub Fac Upp Upp Zhi Pro Fac Was Fac Arm Traps Triggered 17 | . 1 . . . 4 5 . . 1 1 . . . . 3 . . 2 Indirectly . | . . . . . . . . . . . . . . . . . . . Trap Hack Attempts . | . . . . . . . . . . . . . . . . . . . Triggered . | . . . . . . . . . . . . . . . . . . . Disarmed 6 | . . . . . 6 . . . . . . . . . . . . . Reprogrammed 14 | . . . . . 2 . . . . 12 . . . . . . . . Reused 2 | . . . . . 1 . . . . 1 . . . . . . . . Traps Extracted . | . . . . . . . . . . . . . . . . . . . Installed 2 | . . 1 . . 1 . . . . . . . . . . . . . Triggered 2 | . . . . . 1 . . . . 1 . . . . . . . . Most Traps Carried 1 | . . 1 . 1 1 . . . . . . . . . . . . . Machines | -11 -10 -10 -9 -9 -6 -6 -6 -6 -6 -5 -5 -5 -5 -4 -4 -4 -4 -4 ---------- Run | Yrd Mat Sub Rec Scr Fac Ext Cet Arc Hub Fac Upp Upp Zhi Pro Fac Was Fac Arm Machines Disabled 52 | . . 3 . . 6 2 . 2 5 4 . . . . 14 . 9 7 Max in Single Turn 5 | . . 1 . . 5 . . . . . . . . . 5 . 5 1 Garrison Access 12 | . . . . . 3 . . . 1 2 . . . . 3 . 3 . Network Hub 1 | . . . . . . . . . 1 . . . . . . . . . Energy Cycler 2 | . . . . . . 1 . . . . . . . . . . . 1 Machines Repaired . | . . . . . . . . . . . . . . . . . . . Machines Dismantled . | . . . . . . . . . . . . . . . . . . . Machines Sabotaged 1 | . . . . . . . . . 1 . . . . . . . . . Overloaded Fab Kills . | . . . . . . . . . . . . . . . . . . . Hacking | -11 -10 -10 -9 -9 -6 -6 -6 -6 -6 -5 -5 -5 -5 -4 -4 -4 -4 -4 --------- Run | Yrd Mat Sub Rec Scr Fac Ext Cet Arc Hub Fac Upp Upp Zhi Pro Fac Was Fac Arm Machines Accessed 129 | . 7 1 12 6 24 11 . . 5 18 2 1 4 1 18 . 16 3 Terminals 56 | . 4 . 5 . 10 9 . . 4 7 1 1 . 1 7 . 5 2 Fabricators 10 | . . . . . 4 . . . . 2 . . . . 2 . 1 1 Repair Stations 8 | . 1 . . . 1 . . . . 1 . . . . 2 . 3 . Recycling Units 27 | . 2 . 7 . 4 2 . . . 5 . . . . 4 . 3 . Scanalyzers 4 | . . . . . 2 . . . . 1 . . . . . . 1 . Garrison Access 12 | . . . . . 3 . . . 1 2 . . . . 3 . 3 . Total Hacks 465 | . 19 1 41 44 61 29 . . 10 72 6 1 17 1 81 . 65 17 Successful 254 | . 9 1 22 44 34 18 . . 4 40 6 1 17 1 31 . 18 8 Failed 209 | . 10 . 18 . 26 11 . . 6 32 . . . . 50 . 47 9 Catastrophic 42 | . 2 . . . 6 . . . . 4 . . . . 12 . 14 4 Database Lockouts 2 | . . . 1 . 1 . . . . . . . . . . . . . Manual 164 | . 10 . 21 . 23 14 1 . 6 23 . . . . 39 . 19 8 Terminals 226 | . 13 . 22 . 24 25 . . 9 42 5 1 . 1 50 . 20 14 Fabricators 36 | . . . . . 15 . . . . 9 . . . . 5 . 4 3 Repair Stations 20 | . 2 . . . 2 . . . . 2 . . . . 4 . 10 . Recycling Units 74 | . 4 . 19 . 9 4 . . . 12 . . . . 17 . 9 . Scanalyzers 23 | . . . . . 6 . . . . 4 . . . . . . 13 . Garrison Access 23 | . . . . . 5 . . . 1 3 . . . . 5 . 9 . Terminal Hacks 139 | . 3 1 5 44 11 13 . . 1 16 6 1 17 1 12 . 2 6 Record 47 | . . . . 35 . . . . . . 5 1 5 1 . . . . Part Schematic 12 | . . . 2 . 3 1 . . . 1 . . 4 . . . . 1 Robot Schematic 3 | . . . 1 . 1 1 . . . . . . . . . . . . Robot Analysis 14 | . . . . 8 . 1 . . . 1 . . 4 . . . . . Prototype ID Bank 5 | . . . 1 . . . . . . . . . 4 . . . . . Open Door 4 | . . . . . . 2 . . . . 1 . . . . . . 1 Level Access Points 1 | . . . . . . . . . . 1 . . . . . . . . Emergency Access Points 1 | . . . 1 . . . . . . . . . . . . . . . Terminal Index 2 | . . . . . . 1 . . . 1 . . . . . . . . Garrison Index 1 | . . . . . 1 . . . . . . . . . . . . . Alert Level 8 | . . . . . . 1 . . . 2 . . . . 3 . 1 1 Unreport Threat 14 | . . . . . 3 . . . 1 3 . . . . 3 . 1 3 Locate Traps 7 | . 1 . . . 1 2 . . . 2 . . . . 1 . . . Disarm Traps 1 | . . . . . 1 . . . . . . . . . . . . . Reprogram Traps 3 | . . . . . 1 . . . . 2 . . . . . . . . Recall Investigation 5 | . 1 . . . . 2 . . . 1 . . . . 1 . . . Hauler Manifests 2 | . . . . . . 1 . . . . . . . . 1 . . . Registered Components 2 | . . . . . . . . . . 1 . . . . 1 . . . Registered Prototypes 1 | . . . . . . . . . . 1 . . . . . . . . Zone Layout 4 | . 1 . . . . 1 . . . . . . . . 2 . . . Proto ID Catalog 2 | . . 1 . 1 . . . . . . . . . . . . . . Fabricator Hacks 13 | . . . . . 6 . . . . 4 . . . . . . 2 1 Network Status 3 | . . . . . 2 . . . . . . . . . . . . 1 Load Schematic 5 | . . . . . 2 . . . . 2 . . . . . . 1 . Build 5 | . . . . . 2 . . . . 2 . . . . . . 1 . Repair Station Hacks 13 | . 1 . . . 2 . . . . 2 . . . . 4 . 4 . Scan Component 7 | . . . . . 1 . . . . 1 . . . . 2 . 3 . Repair 5 | . . . . . 1 . . . . 1 . . . . 2 . 1 . Refit 1 | . 1 . . . . . . . . . . . . . . . . . Recycling Unit Hacks 22 | . 2 . 7 . 1 4 . . . 5 . . . . 2 . 1 . Process 1 | . . . . . . 1 . . . . . . . . . . . . Report Inventory 3 | . . . . . . 2 . . . 1 . . . . . . . . Retrieve Matter 1 | . . . . . . 1 . . . . . . . . . . . . Retrieve Components 17 | . 2 . 7 . 1 . . . . 4 . . . . 2 . 1 . Scanalyzer 8 | . . . . . 3 . . . . 2 . . . . . . 3 . Insert Component 3 | . . . . . 2 . . . . . . . . . . . 1 . Analyze 1 | . . . . . 1 . . . . . . . . . . . . . Retrieve Study 4 | . . . . . . . . . . 2 . . . . . . 2 . Garrison Access Hacks 12 | . . . . . 3 . . . 1 2 . . . . 3 . 3 . Seal Access 12 | . . . . . 3 . . . 1 2 . . . . 3 . 3 . Unauthorized Hacks 47 | . 3 . 10 . 8 1 . . 2 9 . . . . 10 . 3 1 Terminals 27 | . 3 . 5 . 3 1 . . 2 4 . . . . 6 . 2 1 Assimilate 1 | . . . . . . . . . . . . . . . 1 . . . Botnet 23 | . 2 . 5 . 3 1 . . . 4 . . . . 5 . 2 1 Operators 1 | . 1 . . . . . . . . . . . . . . . . . Sabotage 2 | . . . . . . . . . 2 . . . . . . . . . Fabricators 2 | . . . . . 1 . . . . 1 . . . . . . . . Fabnet 2 | . . . . . 1 . . . . 1 . . . . . . . . Repair Stations . | . . . . . . . . . . . . . . . . . . . Recycling Units 18 | . . . 5 . 4 . . . . 4 . . . . 4 . 1 . Tunnel 5 | . . . 5 . . . . . . . . . . . . . . . Fedlink 11 | . . . . . 4 . . . . 3 . . . . 3 . 1 . Scrapoids 2 | . . . . . . . . . . 1 . . . . 1 . . . Scanalyzers . | . . . . . . . . . . . . . . . . . . . Garrison Access . | . . . . . . . . . . . . . . . . . . . Data Cores Recovered . | . . . . . . . . . . . . . . . . . . . Used . | . . . . . . . . . . . . . . . . . . . Hacking Detections 81 | . 6 . 6 . 19 8 . . 2 13 . . . 1 12 . 11 3 Full Trace Events 13 | . . . 4 . 1 2 . . 1 2 . . . . 1 . 2 . Feedback Events 1 | . . . . . . . . . . . . . . . . . 1 . Corruption 1 | . . . . . . . . . . . . . . . . . 1 . Feedback Blocked . | . . . . . . . . . . . . . . . . . . . Robot Schematics Acquired 3 | . . . 1 . 1 1 . . . . . . . . . . . . Robots Built . | . . . . . . . . . . . . . . . . . . . Authchips . | . . . . . . . . . . . . . . . . . . . Time . | . . . . . . . . . . . . . . . . . . . Total Robot Build Rating . | . . . . . . . . . . . . . . . . . . . Part Schematics Acquired 12 | . . . 2 . 3 1 . . . 1 . . 4 . . . . 1 Parts Built 9 | . . . . . 4 . . . . 4 . . . . . . 1 . Authchips 1 | . . . . . 1 . . . . . . . . . . . . . Time 249 | . . . . . 62 . . . . 94 . . . . . . 93 . Total Part Build Rating 47 | . . . . . 20 . . . . 20 . . . . . . 7 . Part Studies Acquired 4 | . . . . . . . . . . 2 . . . . . . 2 . Parts Repaired 5 | . . . . . 1 . . . . 1 . . . . 2 . 1 . Time 360 | . . . . . 44 . . . . 50 . . . . 188 . 78 . Parts Recycled . | . . . . . . . . . . . . . . . . . . . Recycled Matter 275 | . . . . . . 275 . . . . . . . . . . . . Retrieved Matter 275 | . . . . . . 275 . . . . . . . . . . . . Retrieved Components 44 | . 10 . 18 . 2 . . . . 6 . . . . 6 . 2 . Parts Scanalyzed 2 | . . . . . 1 . . . . . . . . . . . 1 . Part Schematics Acquired 1 | . . . . . 1 . . . . . . . . . . . . . Parts Damaged 1 | . . . . . . . . . . . . . . . . . 1 . Bothacking | -11 -10 -10 -9 -9 -6 -6 -6 -6 -6 -5 -5 -5 -5 -4 -4 -4 -4 -4 ------------ Run | Yrd Mat Sub Rec Scr Fac Ext Cet Arc Hub Fac Upp Upp Zhi Pro Fac Was Fac Arm Used RIF Installer . | . . . . . . . . . . . . . . . . . . . Robots Hacked 15 | . . . . . . . . . . . 1 1 . 1 4 . 4 4 Non-combat . | . . . . . . . . . . . . . . . . . . . Combat 15 | . . . . . . . . . . . 1 1 . 1 4 . 4 4 Robot Hacks Applied . | . . . . . . . . . . . . . . . . . . . Relay Couplers Released . | . . . . . . . . . . . . . . . . . . . Fabnet Peak Effective % 4 | . . . . . . . . . . 3 3 3 3 4 4 4 4 4 Autooverrided 15 | . . . . . . . . . . . 1 1 . 1 4 . 4 4 Robots Rewired 29 | . . . 4 . . 9 . . . . . . . . . . . 16 Allies Hacked 1 | . . . . . . . . . . . . . . . 1 . . . Hacks Repelled . | . . . . . . . . . . . . . . . . . . . Allies | -11 -10 -10 -9 -9 -6 -6 -6 -6 -6 -5 -5 -5 -5 -4 -4 -4 -4 -4 -------- Run | Yrd Mat Sub Rec Scr Fac Ext Cet Arc Hub Fac Upp Upp Zhi Pro Fac Was Fac Arm Total Allies 88 | . . . 4 . . 13 10 . . 5 1 1 . 1 10 19 4 20 Largest Group 20 | . . . 2 1 . 10 17 16 13 5 1 1 . 1 5 19 20 11 Highest-Rated Group 931 | . . . 25 15 . 454 931 903 713 238 49 29 . 42 238 684 731 468 Highest-Rated Ally 159 | . . . 15 15 . 159 152 96 96 50 49 29 . 42 64 50 58 64 Total Orders 4 | . . . 1 . . . . . . 2 1 . . . . . . . STAY 2 | . . . 1 . . . . . . 1 . . . . . . . . FOLLOW 1 | . . . . . . . . . . 1 . . . . . . . . EXPLORE 1 | . . . . . . . . . . . 1 . . . . . . . Ally Attacks 669 | . . . 6 . . 95 60 14 135 81 . 2 . 3 49 18 140 66 Total Damage 16607 | . . . 77 . . 2097 1218 191 3020 1918 . . . 55 1201 419 4640 1771 Kills 113 | . . . 1 . . 15 12 3 21 19 . . . . 6 1 28 7 Allies Corrupted 5 | . . . . . . . . . 2 . . . . . . . 1 2 Allies Melted . | . . . . . . . . . . . . . . . . . . . Intel | -11 -10 -10 -9 -9 -6 -6 -6 -6 -6 -5 -5 -5 -5 -4 -4 -4 -4 -4 ------- Run | Yrd Mat Sub Rec Scr Fac Ext Cet Arc Hub Fac Upp Upp Zhi Pro Fac Was Fac Arm Active Infowar (turns) 11305 | . . 91 . . 3909 252 . . . 1422 803 285 140 321 2209 251 1011 611 Optics 1656 | . . . . . . . . . . 470 803 285 98 . . . . . Sensors 10921 | . . . . . 3903 252 . . . 1295 753 227 140 321 2166 251 1011 602 Structural 5416 | . . . . . 3256 . . . . 1202 67 . . 2 889 . . . Traps 2 | . . . . . . . . . . 2 . . . . . . . . Seismic 91 | . . 91 . . . . . . . . . . . . . . . . Cloaking 1 | . . . . . . . . . . . . . . . . . . 1 Jamming 3 | . . . . . . . . . . . . . . 3 . . . . ECM 93 | . . . . . . . . . . . . . . . 83 . . 10 Robot Analysis Total 14 | . . . . 8 . 1 . . . 1 . . 4 . . . . . Derelict Logs Recovered 10 | . . 3 . 4 . . . . . . 1 1 . 1 . . . . Drone Launches 5 | . . . . . . . . . . . 3 . . . . . . 2 Drone Recoveries . | . . . . . . . . . . . . . . . . . . . Exploration | -11 -10 -10 -9 -9 -6 -6 -6 -6 -6 -5 -5 -5 -5 -4 -4 -4 -4 -4 ------------- Run | Yrd Mat Sub Rec Scr Fac Ext Cet Arc Hub Fac Upp Upp Zhi Pro Fac Was Fac Arm Turns Passed 22208 | 41 664 1274 1103 1942 4073 1268 818 177 822 1455 803 285 140 331 2455 251 1011 3295 Spaces Moved 17994 | 41 430 882 706 1573 2671 671 414 109 544 1646 1044 374 187 645 2658 260 1046 2093 Core 8 | 3 . . . . . . . . . . . . . . . . . 5 Treads 14 | . . . . . . . . . . . . . . . . . . 14 Legs 1126 | . . . . . . . . . . . . . . . . . . 1126 Wheels 7876 | 38 430 882 706 1573 2671 671 414 109 382 . . . . . . . . . Hover 8970 | . . . . . . . . . 162 1646 1044 374 187 645 2658 260 1046 948 Flight . | . . . . . . . . . . . . . . . . . . . Fastest Speed 40 | 50 80 105 107 105 105 123 115 130 52 48 48 48 40 40 40 49 50 43 Average Speed 84 | 77 112 109 115 117 118 128 127 130 108 50 48 48 44 40 47 49 50 94 Slowest Speed 500 | 80 140 155 120 160 160 130 130 130 160 56 48 48 90 90 109 50 50 500 Overloaded Moves 42 | . . . . . . . . . . . . . . . 10 . . 32 Propulsion Burnouts . | . . . . . . . . . . . . . . . . . . . Robots Hopped 6 | . . . . . . . . 3 3 . . . . . . . . . Potential Cave-ins 19 | . . . . . . . . . . . . . . . . . . 19 Cave-ins Triggered 2 | . . . . . . . . . . . . . . . . . . 2 Exploration Rate (%) 63 | 3 70 40 93 91 62 79 64 83 38 52 87 53 61 78 50 92 29 85 Regions Visited 18 Branch Regions 12 Pre-discovered Areas 15 | . . 1 5 4 1 . . . . . . . 3 1 . . . . Known Exits Taken 12 | . . 1 . . 1 1 1 1 1 1 1 1 1 1 . . 1 . Unknown Exits Taken 4 | 1 1 . 1 1 . . . . . . . . . . . . . . Scrap Searched 17 | . . . . 9 . . . . . . 5 1 . 2 . . . . Spaces Dug 286 | . . . . . 32 . . . . 21 . . . 2 35 . 7 189 Terrain Destroyed 562 | . . . 1 . 48 41 . . 47 24 8 . . 3 57 . 23 310 Melee 101 | . . . . . 32 . . . . 19 . . . 2 33 . 7 8 Projectile 33 | . . . 1 . 2 . . . 9 5 . . . . 9 . . 7 AOE 393 | . . . . . 12 37 . . 37 . . . . . 11 . 16 280 Terrain Rammed . | . . . . . . . . . . . . . . . . . . . Walls Destroyed . | . . . . . . . . . . . . . . . . . . . Machines Disabled . | . . . . . . . . . . . . . . . . . . . Actions | -11 -10 -10 -9 -9 -6 -6 -6 -6 -6 -5 -5 -5 -5 -4 -4 -4 -4 -4 --------- Run | Yrd Mat Sub Rec Scr Fac Ext Cet Arc Hub Fac Upp Upp Zhi Pro Fac Was Fac Arm Total 22969 | 46 526 1065 954 1675 3316 957 675 134 685 2139 1250 437 240 690 3611 340 1369 2860 Wait 2647 | . 25 50 172 25 336 129 213 20 55 320 148 41 8 6 711 47 223 118 Move 17965 | 40 429 881 705 1572 2670 670 413 102 539 1645 1043 373 186 644 2658 259 1045 2091 Hop 4 | . . . . . . . . 3 1 . . . . . . . . . Pick Up 213 | . 17 17 7 27 38 8 11 . 2 13 2 1 7 3 14 1 5 40 Fast Attach 218 | 6 3 6 3 10 31 2 4 3 8 31 2 . 11 5 24 3 3 63 Attach 100 | . . 7 1 1 14 4 1 . 19 7 . . 4 3 8 1 . 30 Detach 28 | . . 3 2 . 3 . . . 3 8 . . 1 1 4 . . 3 Swap 126 | . 4 10 3 2 14 6 6 . 3 6 5 3 3 8 22 3 1 27 Drop 309 | . 5 20 5 38 49 6 13 3 11 23 7 1 17 8 30 5 7 61 Fire 869 | . 43 68 19 . 91 54 14 3 42 39 43 18 . 10 91 21 76 237 Melee 198 | . . . . . 61 . . . . 47 . . 3 2 49 . 9 27 Ram 2 | . . . . . . . . . 2 . . . . . . . . . Kick . | . . . . . . . . . . . . . . . . . . . Crush . | . . . . . . . . . . . . . . . . . . . Escape Stasis 47 | . . . . . 8 38 . . . . . . . . . . . 1 Rewire 239 | . . . 37 . . 40 . . . . . . . . . . . 162 Trap 2 | . . 1 . . 1 . . . . . . . . . . . . . Miscellaneous 2 | . . 2 . . . . . . . . . . . . . . . . Route ------- -11/Scrapyard -10/Materials (discovered 4 exits: [*Mat] / [*Min x2] / *Sub) -10/Subcaves (discovered 2 exits: *Rec / *Scr) -9/Recycling (discovered 2 exits: [*Fac] / *Scr) -9/Scraptown (discovered 2 exits: *Fac x2) -6/Factory (discovered 5 exits: *Fac x4 / *Ext) -6/Extension (discovered 2 exits: *Fac / *Cet) -6/Cetus (discovered 2 exits: *Fac / *Arc) -6/Archives (discovered 2 exits: *Hub x2) -6/Hub_04(d) (discovered 2 exits: *Fac x2) -5/Factory (discovered 6 exits: Fac x4 / *Upp x2) -5/Upper Caves -5/Upper Caves (discovered 2 exits: Fac / *Zhi) -5/Zhirov -4/Proximity Caves -4/Factory (discovered 6 exits: *Res x3 / *Upp x2 / *Arm) -4/Waste -4/Factory (discovered 2 exits: *Res / *Arm) -4/Armory (discovered 1 exit: *Res) History --------- Turn | Location | Event 10 | -11/Scrapyard | Discovered new exit (range 14) 42 | -11/Scrapyard | Entered Materials 80 | -10/Materials | Discovered new exit (range 7) 307 | -10/Materials | Build established: Mutant 320 | -10/Materials | Discovered new exit (range 14) 583 | -10/Materials | Discovered new exit (range 12) 692 | -10/Materials | Discovered new exit (range 12) 706 | -10/Materials | Entered Subcaves 707 | -10/Subcaves | Approached by a straggling Scientist 775 | -10/Subcaves | Ambushed by Subdwellers from Twisted Machinery 842 | -10/Subcaves | Scientist uncovered a shortcut to Scraptown 1224 | -10/Subcaves | Shifting Twisted Machinery released Shrapnel Trap 1232 | -10/Subcaves | Shifting Twisted Machinery released Sub. Machine Gun 1265 | -10/Subcaves | Identified exit to Recycling 1362 | -10/Subcaves | Core integrity fell below 50% 1373 | -10/Subcaves | Build established: Scavenger-Mutant 1483 | -10/Subcaves | Core integrity fell below 20% 1630 | -10/Subcaves | Learned location of Zion (-6) 1643 | -10/Subcaves | Visited 4L-MR0's lab 1896 | -10/Subcaves | Learned 4 Materials zone layouts 1980 | -10/Subcaves | Entered Recycling 2087 | -9/Recycling | Build established: Mutant 2729 | -9/Recycling | Discovered new exit (range 14) 3039 | -9/Recycling | Scanned before Scraplab entrance 3057 | -9/Recycling | Entered Scraplab 3066 | -9/Recycling | Discovered new exit (range 3) 3083 | -9/Recycling | Entered Scraptown 3083 | -9/Scraptown | Accompanied by 1 ally 3256 | -9/Scraptown | Heard Great Nut preacher, LISTEN AND RECITE! 3348 | -9/Scraptown | Scanned Subdweller tech in exchange for log data 3351 | -9/Scraptown | Learned Research terminal intel 3352 | -9/Scraptown | Learned Factory terminal intel 3353 | -9/Scraptown | Learned location of 2 exits from Upper Caves 3354 | -9/Scraptown | Learned location of Testing (-3) 3370 | -9/Scraptown | Discovered new exit (range 11) 3447 | -9/Scraptown | Visited Assassins FH 3462 | -9/Scraptown | Visited Bundlers 3633 | -9/Scraptown | Visited Comm Corps 3685 | -9/Scraptown | Visited Fellowship of the Rings 3890 | -9/Scraptown | Visited Red Mages 3954 | -9/Scraptown | Visited Cyclists 3973 | -9/Scraptown | Visited Awakened 3995 | -9/Scraptown | Visited UFD Registry 3995 | -9/Scraptown | Registered with UFD as "Gunbomber" 4018 | -9/Scraptown | Entered Cyclist Reading Room 4082 | -9/Scraptown | Visited Curators Association 4102 | -9/Scraptown | Visited DA-N13 Charitable Foundation 4106 | -9/Scraptown | Found DCF Scrap (28 items) 4134 | -9/Scraptown | Visited Junk Repository 4206 | -9/Scraptown | Delivered Scrap Shield to a Scientist 4290 | -9/Scraptown | Visited Science Guys 4333 | -9/Scraptown | Visited Analyses Database 4360 | -9/Scraptown | Visited Scrapoid Pod Storage 4367 | -9/Scraptown | Found Scrapoid Pod 4382 | -9/Scraptown | Visited Infowarlord's Domain 4389 | -9/Scraptown | Found Exp. Sensor Array 4410 | -9/Scraptown | Visited Derelict Rescue Squad 4418 | -9/Scraptown | Found DRS Beacon 4445 | -9/Scraptown | Visited Junk Repository 4478 | -9/Scraptown | Visited Cartography Club 4504 | -9/Scraptown | Found Surveybot 17 Chip 4567 | -9/Scraptown | Learned location of Cetus (-6) 4567 | -9/Scraptown | Learned 8 Lower Caves zone layouts 4567 | -9/Scraptown | Learned 20 Lower Caves zone layouts 4567 | -9/Scraptown | Learned 8 Upper Caves zone layouts 4567 | -9/Scraptown | Learned 16 Upper Caves zone layouts 4567 | -9/Scraptown | Learned 20 Upper Caves zone layouts 4567 | -9/Scraptown | Learned 8 Proximity Caves zone layouts 4567 | -9/Scraptown | Learned 12 Proximity Caves zone layouts 4567 | -9/Scraptown | Learned Factory emergency access door positions 4567 | -9/Scraptown | Learned location of 3 exits from Factory 4567 | -9/Scraptown | Learned location of 3 exits from Upper Caves 4567 | -9/Scraptown | Learned location of 2 exits from Proximity Caves 4608 | -9/Scraptown | Found Deep Structural Scanner 4956 | -9/Scraptown | Met Optimus 4956 | -9/Scraptown | Accepted into 0bPrime 5021 | -9/Scraptown | Discovered new exit (range 3) 5025 | -9/Scraptown | Entered Factory 5025 | -6/Factory | Evolved 8 slots: Propulsion x2, Utility x5, Weapon x1 5026 | -6/Factory | Identified exit to Factory 5026 | -6/Factory | Identified exit to Extension 5028 | -6/Factory | Loaded intel: 28 terminal locations 5465 | -6/Factory | Build established: Hacker-Skirmisher 5693 | -6/Factory | Repaired Imp. Medium Armor Plating 5789 | -6/Factory | Build established: Skirmisher 5879 | -6/Factory | Discovered exit to Factory (range 18) 7037 | -6/Factory | Loaded intel: 8 recycling unit locations 7321 | -6/Factory | Central database locked down 7413 | -6/Factory | Spotted B-75 Beast 7441 | -6/Factory | Build established: Scavenger-Assassin 7705 | -6/Factory | Learned location of Protoforge (-2) 7800 | -6/Factory | Discovered exit to Factory (range 16) 7985 | -6/Factory | Cargo convoy interrupted 8238 | -6/Factory | Build established: Assassin 8779 | -6/Factory | Build established: Scavenger-Mutant 8994 | -6/Factory | Fabricated Hyp. Gauss Rifle (x2) 9070 | -6/Factory | Fabricated Hyp. Gauss Rifle (x2) 9098 | -6/Factory | Entered Extension 9656 | -6/Extension | Build established: Hacker-Tank 9728 | -6/Extension | Rescued A7 9853 | -6/Extension | Spotted B-75 Beast 9922 | -6/Extension | Destroyed B-75 Beast 9923 | -6/Extension | Disrupted transfer network 9929 | -6/Extension | Spotted B-75 Beast 9967 | -6/Extension | Allies destroyed B-75 Beast 10034 | -6/Extension | Rescued a captive Derelict 10034 | -6/Extension | Rescued a captive Derelict 10168 | -6/Extension | Energy Cycler disabled 10169 | -6/Extension | Rescued a captive Derelict 10317 | -6/Extension | Discovered exit to Factory (range 10) 10318 | -6/Extension | Discovered new exit (range 6) 10362 | -6/Extension | Identified exit to Cetus 10366 | -6/Extension | Entered Cetus 10366 | -6/Cetus | Accompanied by 10 allies (A7) 10371 | -6/Cetus | Acquired a Cetus Manufacturing Module code from A7 10413 | -6/Cetus | Spotted Cetus Guard 10413 | -6/Cetus | Spotted Cetus Guard 10421 | -6/Cetus | Destroyed Cetus Guard 10421 | -6/Cetus | Spotted Cetus Guard 10427 | -6/Cetus | Extracted ID and sensor layout for unrecognized location from A7's data core 10431 | -6/Cetus | Core integrity fell below 50% 10431 | -6/Cetus | Allies destroyed Cetus Guard 10432 | -6/Cetus | Spotted Cetus Guard 10433 | -6/Cetus | Allies destroyed Cetus Guard 10437 | -6/Cetus | Allies destroyed Cetus Guard 10518 | -6/Cetus | Started Cetus Manufacturing Module 10543 | -6/Cetus | Manufactured an Enhanced Grunt 10568 | -6/Cetus | Manufactured an Enhanced Grunt 10593 | -6/Cetus | Manufactured an Enhanced Grunt 10618 | -6/Cetus | Manufactured an Enhanced Grunt 10643 | -6/Cetus | Manufactured an Enhanced Grunt 10674 | -6/Cetus | Discovered new exit (range 15) 10704 | -6/Cetus | Spotted Cetus Guard 10705 | -6/Cetus | Spotted Cetus Guard 10708 | -6/Cetus | Allies destroyed Cetus Guard 10709 | -6/Cetus | Spotted Cetus Guard 10714 | -6/Cetus | Allies destroyed Cetus Guard 10721 | -6/Cetus | Allies destroyed Cetus Guard 10729 | -6/Cetus | Discovered exit to Factory (range 16) 10737 | -6/Cetus | Met Revision 17 10935 | -6/Cetus | Scrapoid Pod released 06C05-D (x5) 11116 | -6/Cetus | Security sweep announced 11143 | -6/Cetus | Identified exit to Archives 11184 | -6/Cetus | Entered Archives 11184 | -6/Archives | Accompanied by 16 allies 11228 | -6/Archives | Found Prototype Device 11228 | -6/Archives | Identified Exp. Thermal Shield 11255 | -6/Archives | Discovered new exit (range 15) 11265 | -6/Archives | Unable to access archive contents 11313 | -6/Archives | Discovered new exit (range 15) 11338 | -6/Archives | Identified exit to Hub_04(d) 11347 | -6/Archives | Build established: Commander-Tank 11361 | -6/Archives | Entered Hub_04(d) 11361 | -6/Hub_04(d) | Accompanied by 14 allies 11397 | -6/Hub_04(d) | Spotted B-75 Beast 11413 | -6/Hub_04(d) | Allies destroyed B-75 Beast 11483 | -6/Hub_04(d) | Discovered exit to Factory (range 2) 11822 | -6/Hub_04(d) | Lost 3 allies 11897 | -6/Hub_04(d) | Network Hub disabled 11908 | -6/Hub_04(d) | Spotted Lightning 11910 | -6/Hub_04(d) | Spotted Lightning 11912 | -6/Hub_04(d) | Spotted Lightning 11917 | -6/Hub_04(d) | Attached CPS modules to Lightning. 11932 | -6/Hub_04(d) | Destroyed Lightning 11960 | -6/Hub_04(d) | Lost 6 allies 11961 | -6/Hub_04(d) | Spotted Lightning 11963 | -6/Hub_04(d) | Spotted Lightning 11963 | -6/Hub_04(d) | Spotted Lightning 11981 | -6/Hub_04(d) | System corruption reached 10% 11985 | -6/Hub_04(d) | Destroyed Lightning 12002 | -6/Hub_04(d) | Destroyed Lightning 12013 | -6/Hub_04(d) | Core integrity fell below 20% 12048 | -6/Hub_04(d) | System corruption reached 30% 12085 | -6/Hub_04(d) | Lost 15 parts (1p2n5u7w) 12157 | -6/Hub_04(d) | Found Prototype Energy Cannon 12157 | -6/Hub_04(d) | Identified EMDS 12178 | -6/Hub_04(d) | Discovered exit to Factory (range 7) 12183 | -6/Hub_04(d) | Entered Factory 12183 | -5/Factory | Evolved 2 slots: Propulsion x1, Utility x1 12184 | -5/Factory | Identified exit to Upper Caves 12225 | -5/Factory | Loaded intel: 8 recycling unit locations 12398 | -5/Factory | Spotted B-75 Beast 12522 | -5/Factory | Repaired Lyr. Medium Armor Plating 12759 | -5/Factory | Build established: Hacker-Scout 12836 | -5/Factory | Fabricated Hyp. Gauss Rifle? 12987 | -5/Factory | Identified exit to Factory 13042 | -5/Factory | Scrapoids reinforcements arrived? 13165 | -5/Factory | Found Prototype Processor 13165 | -5/Factory | Identified Exp. Targeting Computer 13383 | -5/Factory | First assault squad dispatched 13411 | -5/Factory | Lost 3 allies 13469 | -5/Factory | Fabricated Hyp. Gauss Rifle? 13638 | -5/Factory | Entered Upper Caves 13639 | -5/Upper Caves | Identified exit to Upper Caves 13640 | -5/Upper Caves | UFD Scientist delivered a prototype 13641 | -5/Upper Caves | Found Prototype Protection 13693 | -5/Upper Caves | Build established: Scout 13745 | -5/Upper Caves | Attracted the attention of an 0b10 base 13804 | -5/Upper Caves | Learned 8 Factory zone layouts 13814 | -5/Upper Caves | Learned location of 2 exits from Upper Caves 13814 | -5/Upper Caves | Learned Factory garrison access intel 13814 | -5/Upper Caves | Learned Extension garrison access intel 14129 | -5/Upper Caves | Spotted B-75 Beast 14441 | -5/Upper Caves | Entered another Upper Caves area 14443 | -5/Upper Caves | Identified exit to Zhirov 14691 | -5/Upper Caves | Encountered an infested base 14726 | -5/Upper Caves | Entered Zhirov 14726 | -5/Zhirov | Discovered new exit (range 3) 14735 | -5/Zhirov | Met Zhirov 14746 | -5/Zhirov | Learned location of Command (-1) 14749 | -5/Zhirov | Zhirov requested help retrieving the SGEMP Prototype 14756 | -5/Zhirov | Found Alien Artifact 14756 | -5/Zhirov | Identified Integrated Dissipator 14756 | -5/Zhirov | Installed Integrated Dissipator, increased core heat dissipation (+20) 14827 | -5/Zhirov | Identified Enh. Scrap Shield 14851 | -5/Zhirov | Found Alien Artifact 14866 | -5/Zhirov | Identified exit to Proximity Caves 14866 | -5/Zhirov | Entered Proximity Caves 15197 | -4/Proximity Caves | Entered Factory 15197 | -4/Factory | Evolved 2 slots: Utility x2 15198 | -4/Factory | Identified exit to Research 15199 | -4/Factory | Identified exit to Armory 15199 | -4/Factory | Identified exit to Upper Caves 15200 | -4/Factory | Loaded intel: 4 garrison access locations 15205 | -4/Factory | Loaded intel: 8 recycling unit locations 15463 | -4/Factory | Destroyed 7 combat bots 15466 | -4/Factory | Build established: Infiltrator-Ninja 15948 | -4/Factory | Discovered exit to Research (range 12) 16504 | -4/Factory | Discovered exit to Upper Caves (range 6) 16914 | -4/Factory | Repaired Exp. Utility Shielding? 17030 | -4/Factory | Scrapoid reinforcements arrived 17088 | -4/Factory | Discovered exit to Research (range 9) 17182 | -4/Factory | Found Exp. Signal Interpreter 17207 | -4/Factory | Lost 3 allies 17310 | -4/Factory | Repaired Exp. Sensor Array 17488 | -4/Factory | Build established: Mutant 17652 | -4/Factory | Sucked down chute 17652 | -4/Factory | Entered Waste 17653 | -4/Waste | Met a frightened Derelict 17653 | -4/Waste | Identified exit to Factory 17653 | -4/Waste | Found Prototype Device 17653 | -4/Waste | Identified Exp. Shock Absorption System 17678 | -4/Waste | Destroyed C-40 Crusher 17690 | -4/Waste | Spotted C-40 Crusher 17691 | -4/Waste | Destroyed C-40 Crusher 17699 | -4/Waste | Destroyed C-40 Crusher 17703 | -4/Waste | Spotted C-40 Crusher 17717 | -4/Waste | Destroyed C-40 Crusher 17722 | -4/Waste | Spotted C-40 Crusher 17744 | -4/Waste | Allies destroyed C-40 Crusher 17752 | -4/Waste | Spotted C-40 Crusher 17765 | -4/Waste | Destroyed C-40 Crusher 17805 | -4/Waste | Warlord forces began an assault 17903 | -4/Waste | Entered Factory 17903 | -4/Factory | Accompanied by 19 allies 17970 | -4/Factory | Lost 6 allies 18059 | -4/Factory | Loaded intel: 8 recycling unit locations 18079 | -4/Factory | Lost 3 allies 18153 | -4/Factory | First assault squad dispatched 18212 | -4/Factory | Repaired Broken Hyp. Gauss Cannon+ 18552 | -4/Factory | Fabricated Assault Drone Bay (x1) 18638 | -4/Factory | Lost 3 allies 18642 | -4/Factory | Local machine network offline 18762 | -4/Factory | Discovered exit to Research (range 12) 18901 | -4/Factory | Discovered exit to Armory (range 8) 18914 | -4/Factory | Entered Armory 18914 | -4/Armory | Accompanied by 3 allies 19164 | -4/Armory | First assault squad dispatched 19211 | -4/Armory | Local machine network offline 19271 | -4/Armory | P-70 Sage assimilated allied Veteran 7c 19322 | -4/Armory | Lost 3 parts (2u1w) 19338 | -4/Armory | Lost 12 allies 19347 | -4/Armory | Spotted B-86 Titan 19656 | -4/Armory | Lost 8 parts (1p2n3u2w) 19750 | -4/Armory | Core integrity fell below 50% 19833 | -4/Armory | System corruption reached 10% 19863 | -4/Armory | Lost 16 parts (1p8n4u3w) 20027 | -4/Armory | Core integrity fell below 20% 20070 | -4/Armory | Destroyed 7 combat bots 20303 | -4/Armory | Build established: Scavenger-Tank 20473 | -4/Armory | Lost 3 parts (1u2w) 21058 | -4/Armory | Energy Cycler disabled 21211 | -4/Armory | Destroyed 7 combat bots 21328 | -4/Armory | Lost 9 parts (1n6u2w) 21375 | -4/Armory | Discovered exit to Research (range 4) 22198 | -4/Armory | Crushed by falling debris 22209 | -4/Armory | Crushed by falling debris 22209 | -4/Armory | Smashed by cave-in Last Messages --------------- 8E. 22148_ System corrupted: Heat flow error (+189). 22150_ Archangel 7d system terminally corrupted. 22150_ System corrupted: Lgt. Antimatter Cannon jammed. 22170_ The unstable cave ceiling collapses. 22172_ IG7F/:6B=KF>BYL#AQTQ&NO 22172_ The unstable cave ceiling collapses. 22188_ System corrupted: Energy discharge (-176). 22189_ The unstable cave ceiling collapses. 22198_ Crushed by falling debris. 22198_ Energy Well destroyed. 22198_ System corrupted by crushing effect (+4). 22201_ The unstable cave ceiling collapses. 22209_ Crushed by falling debris. 22209_ Lgt. Antimatter Reactor destroyed. 22209_ System corrupted by crushing effect (+5). 22209_ Graphene Brace destroyed. 22209_ System corrupted by crushing effect (+3). Map ----- +----------------------------------------------------+ | | | | | | | | | | | | | | | ?????????????????????????????????????????????????? | | ?????????????????????????????????????????????????? | | ?????????????????????????????????????????????????? | | ?????????????????????????????????????????????????? | | ?????????????????????????????????????????????????? | | ?????????????????????????????????????????????????? | | ?????????????????????????????????????????????????? | | ?????????????????????????????????????????????????? | | ?????????????????????????????????????????????????? | | ?????????????????????????????????????????????##### | | ##???????????????????????????????????????????# | | "#???????????????????????????????????????????# | | "#???????????????#############???????????????# | | "#???????######### # # # ####????????????# | | ##??????## # ############# | | ???????## # # | | ?????### # # # # # # | | ######"# # + | | # # # ## @ # | | """ # # #+### | | """ # # # # # # + | | =""" ! ## ## # ### # | | ! # ###?# # | | *""" ###### #### # #####???# # | | """ #????###??#######???????# + | | """ ! #???????????????????????# # | | #???????????????????????# # | | #########??????????????????????#"######"###### | | ???????????????????????????????##?????###?????## | | ?????????????????????????????????????????????????? | | ?????????????????????????????????????????????????? | | ########????#########????????????????????????????? | | # #????# #????????????????????????????? | | # """ #????# #????????????????????????????? | | # "" #????# #????????????????????????????? | | # "" #????# #????????????????????????????? | | * #????# #????????????????????????????? | | !%! ###### #????????????????????????????? | | [! # ## # [ #????????????????????????????? | | %=%= # ]] []#????????????????????????????? | | !=[[ T +[[]] #????????????????????????????? | | # # ## # #????????????????????????????? | | # ### ###### [[ #????????????????????????????? | +----------------------------------------------------+ Best States ------------- Heat Dissipation 82 Energy Generation 25 Energy Capacity 665 Matter Stores 300 Matter Capacity 550 Sight Range 22 Robot Scan Range 20 Terrain Scan Density 10 ECM Strength 2 Additional Mass Support 9 Corruption Containment 8 Armor Coverage 1350 Resistance: KI 30 Resistance: TH 15 Resistance: EX 75 Resistance: EM 15 Core Shielding 30 Power Shielding 66 Propulsion Shielding 33 Utility Shielding 90 Evasion (%) 57 Targeting Accuracy 12 Core Analysis 6 Recoil Reduction 3 Matter Filtering 50 Particle Charging 30 Salvage Targeting 2 Offensive Hacking 32 Defensive Hacking 14 Authchip Count 3 Item Schematics ----------------- Lrg. Storage Unit | -9/Recycling | Hacked Beam Rifle | -9/Recycling | Hacked Hyp. Gauss Rifle | -6/Factory | Hacked Core Analyzer | -6/Factory | Hacked CPS Tube | -6/Factory | Scanalyzed Adv. Cooling System | -6/Extension | Hacked Mic. Fission Core | -5/Factory | Hacked Assault Drone Bay | -5/Zhirov | Free Exp. Heat Sink | -5/Zhirov | Free Imp. Arc Thrower | -5/Zhirov | Free Exp. Optical Array | -5/Zhirov | Free Imp. Terrain Scanner | -4/Armory | Hacked Robot Schematics ------------------ M-13 Machinist | -9/Recycling | Hacked L-41 Fighter | -6/Factory | Hacked H-66 Slayer | -6/Extension | Hacked Fabricated ------------ Hyp. Gauss Rifle | x2 | -6/Factory | Authchip Hyp. Gauss Rifle | x2 | -6/Factory Hyp. Gauss Rifle | x2 | -5/Factory Hyp. Gauss Rifle | x2 | -5/Factory Assault Drone Bay | x1 | -4/Factory Repaired ---------- Imp. Medium Armor Plating | 58% | -6/Factory Lyr. Medium Armor Plating | 34% | -5/Factory Exp. Utility Shielding | 28% | -4/Factory Exp. Sensor Array | 34% | -4/Factory Hyp. Gauss Cannon | 89% | -4/Factory | Broken Studied --------- Imp. Hover Unit | -5/Factory | Hacked Imp. Gravmag System | -5/Factory | Hacked Hyp. Gauss Rifle | -4/Factory | Hacked Hyp. Gauss Cannon | -4/Factory | Hacked Alien Tech Used ----------------- Integrated Dissipator Achievements -------------- None Challenges ------------ None Game ------ Seed ProjectionCentriumJets Manual? 0 Play Time 05:24:53 Cumulative 331.0 hours Start 2025.12.23 @ 03:16:20 End 2025.12.23 @ 22:00:53 Sessions 5 Manual Loads 0 Difficulty Rogue Special Mode None Game No. 120 Rogue 120 Adventurer 0 Explorer 0 Win Type - Total 5 Types 3/0/0/0/0/0/0/1/0/1 Lore% 77 Gallery% 72 Achievement% 61 Wizard Run 0 Options --------- Layout 1 ASCII 0 Keyboard 0 Movement Mouse Keybinds 0 Fullscreen 2 Font 32/SmallcapsGlow Map View 50x35 Zoom Use 0% Tactical HUD 1 Map Filters NONE Filters NONE Steam 1 RUN: a162c6f9-1481-4351-9116-7d3a98d17cad